bitfinex/quotes_BTCUSD_20250428
["timestamp","ask_amount","ask_price","bid_price","bid_amount"]
[1745869408926,0.03866777,94946.0,94943.0,0.2106527]
[1745869409095,0.02813547,94946.0,94945.0,0.21064827]
[1745869410379,0.02813547,94946.0,94943.0,0.2106527]
[1745869410380,0.03866777,94946.0,94943.0,0.2106527]
[1745869410586,0.02813547,94946.0,94944.0,0.21065035]
[1745869411269,0.01973164,94945.0,94944.0,0.21065035]
[1745869411524,0.02713547,94945.0,94944.0,0.21065035]
[1745869412155,0.02713547,94945.0,94939.0,0.01053307]
[1745869412361,0.02713547,94945.0,94944.0,0.21065048]
[1745869412563,0.03152409,94945.0,94944.0,0.21065048]
[1745869418372,0.02713547,94945.0,94944.0,0.21065048]
[1745869418783,0.01973164,94945.0,94944.0,0.21065048]
[1745869419214,0.2236328,94953.0,94950.0,0.21063682]
[1745869419432,0.01300121,94953.0,94950.0,0.21063682]
[1745869419625,0.00246969,94953.0,94951.0,0.21063478]
[1745869419754,0.02387581,94952.0,94951.0,0.21063478]
[1745869420445,0.03127769,94952.0,94951.0,0.21063478]
[1745869421370,0.03327769,94952.0,94951.0,0.21063478]
[1745869422062,0.03327769,94952.0,94951.0,0.33206577]
[1745869422295,0.02914025,94952.0,94951.0,1.09398739]
[1745869422538,0.00940188,94952.0,94951.0,1.14088739]
[1745869422766,0.002,94952.0,94951.0,1.14088739]
[1745869423447,0.00246969,94953.0,94952.0,0.35454085]
[1745869423663,0.00246969,94953.0,94952.0,0.56567099]
[1745869425006,0.00246969,94953.0,94952.0,0.56867099]
[1745869426338,0.00246969,94953.0,94952.0,0.97977097]
[1745869428168,0.00246969,94953.0,94952.0,0.9877405]
[1745869429652,0.00246969,94953.0,94952.0,1.19837324]
[1745869436437,0.00246969,94953.0,94952.0,1.19809324]
[1745869446707,0.00246969,94953.0,94952.0,1.22972424]
[1745869451288,0.00246969,94953.0,94952.0,1.12576424]
[1745869451445,0.00246969,94953.0,94952.0,1.22972424]
[1745869457016,0.00246969,94953.0,94952.0,0.73666225]
[1745869457232,0.05006969,94953.0,94952.0,0.73666225]
[1745869457439,0.00246969,94953.0,94952.0,0.73666225]
[1745869458241,0.00246969,94953.0,94952.0,0.85509324]
[1745869458465,0.00246969,94953.0,94952.0,0.85609324]
[1745869458867,0.00246969,94953.0,94952.0,0.85509324]
[1745869459191,0.00246969,94953.0,94952.0,0.85609324]
[1745869465998,0.00246969,94953.0,94952.0,0.75213324]
[1745869466224,0.00246969,94953.0,94952.0,0.85609324]
[1745869467854,0.00246969,94953.0,94952.0,0.88772724]
[1745869468588,0.1,94955.0,94954.0,0.2106283]
[1745869468805,0.1,94955.0,94954.0,0.65751844]
[1745869470819,0.1,94955.0,94954.0,0.67205929]
[1745869471221,0.1,94955.0,94954.0,0.67305929]
[1745869472278,0.1,94955.0,94954.0,0.67205929]
[1745869472507,0.1,94955.0,94954.0,0.67505929]
[1745869473231,0.1,94955.0,94954.0,1.08615927]
[1745869478413,1e-08,94955.0,94954.0,1.18135927]
[1745869479312,0.1,94982.0,94981.0,0.22510927]
[1745869479549,0.1,94982.0,94981.0,0.84597098]
[1745869480034,0.1,94982.0,94981.0,0.87759498]
[1745869480683,0.10004548,94982.0,94981.0,0.87759498]
[1745869480898,0.10004548,94982.0,94981.0,1.21759498]
[1745869481303,0.10004548,94982.0,94981.0,1.2254785]
[1745869485256,0.10004548,94982.0,94981.0,1.1217585]
[1745869485398,0.10004548,94982.0,94981.0,1.2254785]
[1745869488512,0.10004548,94982.0,94981.0,0.8854785]
[1745869490314,0.10004548,94982.0,94981.0,0.7817585]
[1745869490510,0.10004548,94982.0,94981.0,0.8854385]
[1745869500887,0.0004242,94991.0,94984.0,0.21056177]
[1745869501091,0.0004242,94991.0,94984.0,0.31745191]
[1745869502496,0.0004242,94991.0,94984.0,0.72770348]
[1745869511651,0.0004242,94991.0,94984.0,0.86280548]
[1745869511865,0.0004242,94991.0,94984.0,1.20280548]
[1745869517502,0.0004242,94991.0,94984.0,1.09932548]
[1745869517722,0.0004242,94991.0,94984.0,0.41025157]
[1745869517723,0.0995,94985.0,94984.0,0.41025157]
[1745869518127,0.0995,94985.0,94984.0,0.62081334]
[1745869518497,0.10689703,94985.0,94984.0,0.62081334]
[1745869519130,0.01139703,94985.0,94984.0,0.63535419]
[1745869519552,0.004,94985.0,94984.0,0.63535419]
[1745869519766,0.002,94985.0,94984.0,0.63535419]
[1745869519971,0.004,94985.0,94984.0,0.63535419]
[1745869520577,0.002,94985.0,94984.0,0.63535419]
[1745869521014,0.003,94985.0,94984.0,0.63535419]
[1745869535571,0.049,94985.0,94984.0,0.62081334]
[1745869537179,0.049,94985.0,94984.0,0.41025157]
[1745869537386,0.049,94985.0,94984.0,0.62081334]
[1745869538381,0.049,94985.0,94984.0,0.41025157]
[1745869538599,0.049,94985.0,94984.0,0.62081334]
[1745869540653,0.049,94985.0,94984.0,0.21056177]
[1745869542230,0.21056399,94983.0,94981.0,0.00013655]
[1745869542441,0.0453,94982.0,94981.0,0.2107039]
[1745869543069,0.0526929,94982.0,94981.0,0.2107039]
[1745869543718,0.0526929,94982.0,94981.0,0.00013655]
[1745869544783,0.0526929,94982.0,94981.0,0.21070497]
[1745869545862,0.0536929,94982.0,94981.0,0.21070497]
[1745869546944,0.0536929,94982.0,94981.0,0.00013655]
[1745869547121,0.0536929,94982.0,94981.0,0.21070497]
[1745869548372,0.26425911,94982.0,94981.0,0.00013655]
[1745869548573,0.0536929,94982.0,94981.0,0.00013655]
[1745869549011,0.31255911,94982.0,94981.0,0.00013655]
[1745869549821,0.32331738,94982.0,94981.0,0.00013655]
[1745869550248,0.43020752,94982.0,94981.0,0.00013655]
[1745869550448,0.42920752,94982.0,94981.0,0.00013655]
[1745869550585,0.43550016,94982.0,94981.0,0.00013655]
[1745869550784,0.5054446,94982.0,94981.0,0.00013655]
[1745869551226,0.5024446,94982.0,94981.0,0.00013655]
[1745869551425,0.5054446,94982.0,94981.0,0.00013655]
[1745869552363,0.43550016,94982.0,94981.0,0.00013655]
[1745869553541,0.43250016,94982.0,94981.0,0.00013655]
[1745869553753,0.43550016,94982.0,94981.0,0.00013655]
[1745869554160,0.10383063,94961.0,94958.0,0.21061733]
[1745869554580,0.0933,94961.0,94959.0,0.21061609]
[1745869556400,0.00329264,94960.0,94959.0,0.21061549]
[1745869556824,0.00329264,94960.0,94959.0,0.21261549]
[1745869557282,0.00329264,94960.0,94959.0,0.21061549]
[1745869557417,0.00329264,94960.0,94959.0,0.21361549]
[1745869559189,0.0933,94961.0,94960.0,0.21061499]
[1745869560328,0.0933,94961.0,94960.0,0.21261499]
[1745869561475,0.30720541,94961.0,94960.0,0.002]
[1745869562096,0.09659264,94961.0,94960.0,0.002]
[1745869562540,0.09659264,94961.0,94955.0,0.22115657]
[1745869562541,0.09659264,94961.0,94959.0,0.21061676]
[1745869562764,0.00329264,94961.0,94960.0,0.21061499]
[1745869562965,0.00329264,94961.0,94960.0,0.21052174]
[1745869564660,0.00329264,94961.0,94959.0,0.21061676]
[1745869565008,0.00329264,94961.0,94959.0,0.21052382]
[1745869565416,0.00329264,94961.0,94960.0,0.21061499]
[1745869566233,0.00329264,94961.0,94954.0,0.21062528]
[1745869566439,0.00329264,94961.0,94959.0,0.21061519]
[1745869566647,0.00329264,94961.0,94960.0,0.21061499]
[1745869566827,0.01053052,94962.0,94955.0,0.0105313]
[1745869567063,0.2211481,94959.0,94954.0,0.21062628]
[1745869567276,0.21064827,94945.0,94944.0,0.0008482]
[1745869567506,0.25674827,94945.0,94944.0,0.0008482]
[1745869567721,0.0461,94945.0,94944.0,0.0008482]
[1745869567922,0.0461,94945.0,94944.0,0.21149868]
[1745869567923,0.0493935,94945.0,94944.0,0.21149868]
[1745869568053,0.0032935,94945.0,94944.0,0.21149868]
[1745869568623,0.0032935,94945.0,94944.0,0.0008482]
[1745869568829,0.0032935,94945.0,94944.0,0.211635]
[1745869570048,0.0042935,94945.0,94944.0,0.211635]
[1745869571433,0.0042935,94945.0,94944.0,0.33517236]
[1745869571613,0.0042935,94945.0,94944.0,0.33850764]
[1745869572307,0.01053019,94965.0,94962.0,0.01053052]
[1745869572524,0.22113439,94965.0,94961.0,0.22114181]
[1745869573122,0.22115899,94955.0,94951.0,0.62088649]
[1745869573335,0.21062625,94955.0,94952.0,0.21063225]
[1745869573560,0.21062414,94956.0,94952.0,0.21063225]
[1745869573960,0.21062617,94955.0,94952.0,0.21063225]
[1745869574107,0.22115478,94957.0,94953.0,0.21063031]
[1745869574318,0.21062485,94956.0,94953.0,0.21063043]
[1745869574543,0.21062485,94956.0,94952.0,0.21063225]
[1745869574773,0.21062609,94955.0,94952.0,0.22116388]
[1745869574965,0.01053119,94956.0,94953.0,0.2106301]
[1745869575170,0.22115847,94955.0,94952.0,0.22116388]
[1745869575394,0.22115847,94955.0,94952.0,0.01053163]
[1745869575676,0.21062872,94954.0,94951.0,0.63141822]
[1745869576015,0.22115847,94955.0,94951.0,0.42078331]
[1745869576600,0.22115847,94955.0,94951.0,0.63141807]
[1745869576795,0.22115789,94955.0,94951.0,0.63141807]
[1745869576993,0.21062851,94954.0,94951.0,0.63141807]
[1745869577163,0.21062851,94954.0,94952.0,0.21063269]
[1745869577374,0.21062851,94954.0,94951.0,0.6314178]
[1745869577576,0.21063103,94953.0,94951.0,0.42078331]
[1745869577788,0.22115992,94954.0,94951.0,0.631418]
[1745869577977,0.0105313,94955.0,94951.0,0.42078331]
[1745869578155,0.01053141,94954.0,94951.0,0.42078331]
[1745869578368,0.0105313,94955.0,94951.0,0.42078331]
[1745869578773,0.21062935,94954.0,94951.0,0.42078331]
[1745869578981,0.01053108,94957.0,94955.0,0.21062542]
[1745869580006,0.22115311,94957.0,94954.0,0.22115773]
[1745869580471,0.00329265,94956.0,94954.0,0.22115773]
[1745869580928,0.00329265,94956.0,94955.0,0.21062608]
[1745869584493,0.00329265,94956.0,94955.0,0.33205707]
[1745869584733,0.00329265,94956.0,94955.0,0.42535707]
[1745869585700,0.01970887,94973.0,94972.0,0.21058838]
[1745869585906,0.01970887,94973.0,94971.0,0.21059021]
[1745869586286,0.01970887,94973.0,94972.0,0.21058838]
[1745869586714,0.2211029,94979.0,94976.0,0.21057856]
[1745869587154,0.23766363,94978.0,94975.0,0.21058022]
[1745869587485,0.21387002,94977.0,94974.0,0.22111291]
[1745869587917,0.21432459,94977.0,94974.0,0.22111291]
[1745869588598,0.00329211,94976.0,94974.0,0.22111291]
[1745869588819,0.08568292,94976.0,94974.0,0.22111291]
[1745869589219,0.01969171,94975.0,94974.0,0.22111291]
[1745869590207,0.02298382,94975.0,94974.0,0.22111291]
[1745869591608,0.02298382,94975.0,94974.0,0.23565376]
[1745869591803,0.02298382,94975.0,94974.0,0.69430533]
[1745869592192,0.00329211,94975.0,94974.0,0.69430533]
[1745869592920,0.00329211,94975.0,94974.0,0.69630533]
[1745869593123,0.00045457,94977.0,94976.0,0.21057951]
[1745869595648,0.21103186,94977.0,94976.0,0.001]
[1745869596034,0.23923991,94977.0,94976.0,0.001]
[1745869596236,0.26219767,94977.0,94976.0,0.001]
[1745869596445,0.26219767,94977.0,94968.0,0.21059697]
[1745869596446,0.01052953,94971.0,94968.0,0.21059697]
[1745869596839,0.01052953,94971.0,94969.0,0.21059453]
[1745869597246,0.22112168,94971.0,94968.0,0.21059697]
[1745869597386,0.00329172,94970.0,94969.0,0.21059461]
[1745869600766,0.02298419,94970.0,94969.0,0.21059461]
[1745869606760,0.03351383,94970.0,94964.0,0.21060551]
[1745869606983,0.03351383,94970.0,94960.0,0.02120568]
[1745869606984,0.21061277,94961.0,94960.0,0.01067494]
[1745869607197,0.21061277,94961.0,94958.0,0.31345905]
[1745869607198,0.01053063,94961.0,94958.0,0.31345905]
[1745869607405,0.01969247,94960.0,94959.0,0.21061596]
[1745869608262,0.0303722,94960.0,94959.0,0.21061596]
[1745869609019,0.02298419,94960.0,94959.0,0.21061596]
[1745869609463,0.02298419,94960.0,94959.0,0.21161596]
[1745869610651,0.03037379,94960.0,94959.0,0.21161596]
[1745869612326,0.03037379,94960.0,94959.0,0.001]
[1745869613062,0.03037379,94960.0,94959.0,0.21161721]
[1745869615017,0.01068132,94960.0,94959.0,0.21161721]
[1745869615316,0.00329172,94960.0,94959.0,0.21161721]
[1745869615489,0.05932997,94967.0,94964.0,0.21060409]
[1745869615691,0.03038716,94966.0,94965.0,0.2106039]
[1745869616785,0.03038716,94966.0,94964.0,0.21060409]
[1745869617005,0.03038716,94966.0,94963.0,0.21060771]
[1745869617235,0.02299773,94965.0,94963.0,0.21060771]
[1745869617448,0.01053041,94963.0,94960.0,0.21061452]
[1745869617674,0.02709459,94964.0,94960.0,0.01053074]
[1745869617877,0.02299773,94963.0,94961.0,0.21061207]
[1745869618083,0.02299773,94963.0,94962.0,0.21061056]
[1745869618931,0.03038601,94963.0,94962.0,0.21061056]
[1745869619578,0.04696349,94963.0,94962.0,0.21161056]
[1745869619791,0.03038601,94963.0,94962.0,0.21161056]
[1745869621634,0.24099435,94963.0,94962.0,0.001]
[1745869622214,0.03038601,94963.0,94962.0,0.001]
[1745869622780,0.03038601,94963.0,94961.0,0.21061166]
[1745869622985,0.01068085,94962.0,94961.0,0.21061166]
[1745869623181,0.0105882,94962.0,94961.0,0.21061166]
[1745869623448,0.04082388,94962.0,94959.0,0.21061717]
[1745869624057,0.03029336,94962.0,94960.0,0.21061317]
[1745869624278,0.02299773,94961.0,94960.0,0.21061317]
[1745869625121,0.02299773,94961.0,94959.0,0.21061717]
[1745869625320,0.02299773,94961.0,94960.0,0.21061499]
[1745869625681,0.00329257,94961.0,94960.0,0.21061499]
[1745869626289,0.22113888,94963.0,94960.0,0.21061499]
[1745869626523,0.21061076,94962.0,94960.0,0.21061499]
[1745869626915,0.22113888,94963.0,94960.0,0.21061499]
[1745869627301,0.21061709,94960.0,94958.0,0.10284]
[1745869627505,0.21061709,94960.0,94949.0,0.01053196]
[1745869627506,0.0928,94957.0,94945.0,0.42078398]
[1745869627675,0.0928,94957.0,94946.0,0.21064394]
[1745869627676,0.01053196,94949.0,94946.0,0.21064394]
[1745869627889,0.21064275,94948.0,94945.0,0.21064827]
[1745869628102,0.2211715,94949.0,94945.0,0.21064827]
[1745869628510,0.22116979,94950.0,94945.0,0.21064827]
[1745869628709,0.22115678,94956.0,94952.0,0.21063232]
[1745869628916,0.0105313,94955.0,94952.0,0.21063232]
[1745869629140,0.22116204,94953.0,94952.0,0.00013632]
[1745869631614,0.22216204,94953.0,94952.0,0.00013632]
[1745869631963,0.22216204,94953.0,94952.0,4.334e-05]
[1745869632172,0.01053163,94952.0,94948.0,0.21063961]
[1745869632877,0.02160168,94952.0,94950.0,0.21063683]
[1745869633082,0.02160168,94952.0,94945.0,0.22126572]
[1745869633307,0.01153152,94953.0,94950.0,0.21063681]
[1745869633698,0.01053152,94953.0,94950.0,0.21063681]
[1745869634059,0.001,94952.0,94950.0,0.21063616]
[1745869634267,0.01053196,94949.0,94946.0,0.21064605]
[1745869634469,0.01053163,94952.0,94945.0,0.00013633]
[1745869634678,0.01053163,94952.0,94948.0,0.21064161]
[1745869634883,0.22216263,94953.0,94948.0,0.22117369]
[1745869635287,0.22116263,94953.0,94948.0,0.22117369]
[1745869635799,0.22116263,94953.0,94949.0,0.21063788]
[1745869636013,0.01053208,94948.0,94945.0,0.00013633]
[1745869636250,0.22117405,94948.0,94945.0,0.21078445]
[1745869636455,0.01053174,94951.0,94946.0,0.0105323]
[1745869636632,0.01053152,94953.0,94950.0,0.21063545]
[1745869636833,0.2211605,94954.0,94951.0,0.21063393]
[1745869637049,0.001,94953.0,94951.0,0.21063393]
[1745869637412,0.2211605,94954.0,94951.0,0.21063393]
[1745869637622,0.22116251,94953.0,94950.0,0.21063545]
[1745869637824,0.21064562,94947.0,94945.0,0.00013633]
[1745869638175,0.21064423,94947.0,94945.0,0.00013633]
[1745869638380,0.22117379,94948.0,94945.0,0.00013633]
[1745869638572,0.01053185,94950.0,94945.0,0.21078276]
[1745869638778,0.22117014,94950.0,94946.0,0.21064605]
[1745869638979,0.01053196,94949.0,94946.0,0.21064605]
[1745869639115,0.2211677,94951.0,94946.0,0.21064605]
[1745869639314,0.01053174,94951.0,94946.0,0.21064605]
[1745869639792,0.22116713,94951.0,94948.0,0.21064051]
[1745869640337,0.0461,94950.0,94948.0,0.21064051]
[1745869640540,0.25674596,94947.0,94945.0,0.00013633]
[1745869640745,0.0461,94946.0,94945.0,0.00013633]
[1745869641078,0.25674605,94946.0,94945.0,0.00013633]
[1745869642255,0.4368,94945.0,94944.0,0.0008482]
[1745869642459,0.64528155,94930.0,94929.0,1e-08]
[1745869642647,0.55070819,94918.0,94914.0,0.0008486]
[1745869642782,0.65759833,94918.0,94917.0,0.00089388]
[1745869642987,0.76448847,94918.0,94917.0,0.00089388]
[1745869643427,0.65759833,94918.0,94917.0,0.00089388]
[1745869643600,0.31759833,94918.0,94917.0,0.00089388]
[1745869643795,0.21070819,94918.0,94917.0,0.00089388]
[1745869644124,0.21070819,94918.0,94917.0,0.10361388]
[1745869644496,0.21470819,94918.0,94917.0,0.10361388]
[1745869644704,0.004,94918.0,94917.0,0.10361388]
[1745869644907,0.21070622,94919.0,94917.0,0.10361388]
[1745869645109,0.01053396,94931.0,94923.0,0.01053485]
[1745869645313,0.01053374,94933.0,94929.0,0.01053418]
[1745869645530,0.22121357,94931.0,94926.0,0.01053452]
[1745869645733,0.01053429,94928.0,94921.0,0.01053507]
[1745869645942,0.21070819,94918.0,94917.0,0.00089388]
[1745869646379,0.21070819,94918.0,94917.0,0.10361388]
[1745869647477,0.21270819,94918.0,94917.0,0.10361388]
[1745869648135,0.30520134,94918.0,94917.0,0.10361388]
[1745869648375,0.21270819,94918.0,94917.0,0.10361388]
[1745869654221,0.21270819,94918.0,94917.0,0.00089388]
[1745869654428,0.36569833,94918.0,94917.0,0.00089388]
[1745869654628,0.70569833,94918.0,94917.0,0.00089388]
[1745869654982,0.81258847,94918.0,94917.0,0.00089388]
[1745869657389,0.70569833,94918.0,94917.0,0.00089388]
[1745869659272,0.36569833,94918.0,94917.0,0.00089388]
[1745869659503,0.21270819,94918.0,94917.0,0.00089388]
[1745869660589,0.21270819,94918.0,94917.0,0.10345388]
[1745869663404,0.21270819,94918.0,94917.0,0.00089388]
[1745869669625,0.20270819,94918.0,94917.0,0.00089388]
[1745869673842,0.28935049,94918.0,94917.0,0.00089388]
[1745869674247,0.44234063,94918.0,94917.0,0.00089388]
[1745869675067,0.49104063,94918.0,94917.0,0.00089388]
[1745869675252,0.74439833,94918.0,94917.0,0.00089388]
[1745869675465,0.77398687,94918.0,94917.0,0.00089388]
[1745869677207,0.77198687,94918.0,94917.0,0.00089388]
[1745869677428,0.77498687,94918.0,94917.0,0.00089388]
[1745869677629,0.88187701,94918.0,94917.0,0.00089388]
[1745869680480,0.55072817,94909.0,94908.0,1e-08]
[1745869680687,0.73500685,94909.0,94908.0,1e-08]
[1745869680915,0.73500685,94909.0,94908.0,4.55e-05]
[1745869681293,0.74581026,94909.0,94908.0,4.55e-05]
[1745869681720,0.74681026,94909.0,94908.0,4.55e-05]
[1745869682520,0.7604116,94909.0,94908.0,4.55e-05]
[1745869682733,0.74681026,94909.0,94908.0,4.55e-05]
[1745869683269,0.74581026,94909.0,94908.0,4.55e-05]
[1745869683472,0.74881026,94909.0,94908.0,4.55e-05]
[1745869683648,0.34,94908.0,94907.0,0.00070772]
[1745869683821,0.47647868,94908.0,94907.0,0.00070772]
[1745869684812,0.47847868,94908.0,94907.0,0.00070772]
[1745869685041,0.54062491,94908.0,94907.0,0.00070772]
[1745869686192,0.47847868,94908.0,94907.0,0.00070772]
[1745869687062,0.21074371,94902.0,94901.0,0.06322337]
[1745869687263,0.21074371,94902.0,94901.0,0.06330484]
[1745869687264,0.33740558,94902.0,94901.0,0.06330484]
[1745869687777,0.34481997,94902.0,94901.0,0.06330484]
[1745869688606,0.34811525,94902.0,94901.0,0.06330484]
[1745869689423,0.35011525,94902.0,94901.0,0.06330484]
[1745869690443,0.33034352,94902.0,94901.0,0.06330484]
[1745869690831,0.32704824,94902.0,94901.0,0.06330484]
[1745869691007,0.33034347,94902.0,94901.0,0.06330484]
[1745869691359,0.35011519,94902.0,94901.0,0.06330484]
[1745869693156,0.44629067,94902.0,94901.0,0.06330484]
[1745869693571,0.35011519,94902.0,94901.0,0.06330484]
[1745869696779,0.33034347,94902.0,94901.0,0.06330484]
[1745869696999,0.32292908,94902.0,94901.0,0.06330484]
[1745869697224,0.32704794,94902.0,94901.0,0.06330484]
[1745869697437,0.35011416,94902.0,94901.0,0.06330484]
[1745869697658,0.35011416,94902.0,94901.0,0.05539612]
[1745869698567,0.69011416,94902.0,94901.0,0.05539612]
[1745869698783,0.78461416,94902.0,94901.0,0.05539612]
[1745869699502,0.81217745,94902.0,94901.0,0.05539612]
[1745869699744,0.81517745,94902.0,94901.0,0.05539612]
[1745869702675,0.80776336,94902.0,94901.0,0.05539612]
[1745869702900,0.78469714,94902.0,94901.0,0.05539612]
[1745869703120,0.81514175,94902.0,94901.0,0.05012307]
[1745869706206,0.92203189,94902.0,94901.0,0.05012307]
[1745869706410,0.81514175,94902.0,94901.0,0.05012307]
[1745869707855,0.81184609,94902.0,94901.0,0.05012307]
[1745869708136,0.81184609,94902.0,94901.0,0.04221349]
[1745869708335,0.71734609,94902.0,94901.0,0.04221349]
[1745869708686,0.6877828,94902.0,94901.0,0.04221349]
[1745869710245,0.71738404,94902.0,94901.0,0.04221349]
[1745869711136,0.82394669,94902.0,94901.0,0.04221349]
[1745869713744,0.71738404,94902.0,94901.0,0.04221349]
[1745869718677,0.71738404,94902.0,94901.0,0.02903124]
[1745869718908,0.21079258,94880.0,94879.0,0.0008486]
[1745869719112,0.21079258,94880.0,94879.0,0.00089407]
[1745869719314,0.21819684,94880.0,94879.0,0.00089407]
[1745869719710,0.23794153,94880.0,94879.0,0.00089407]
[1745869720659,0.23794153,94880.0,94879.0,0.00189407]
[1745869721069,0.23794153,94880.0,94879.0,0.00089407]
[1745869721513,0.23794153,94880.0,94879.0,0.00189407]
[1745869728896,0.02714895,94880.0,94879.0,0.00189407]
[1745869729217,0.02714895,94880.0,94879.0,0.21268887]
[1745869739002,0.02714895,94880.0,94879.0,0.00189407]
[1745869739863,0.23794153,94880.0,94879.0,0.00189407]
[1745869740354,0.02714895,94880.0,94879.0,0.00189407]
[1745869740747,0.23794153,94880.0,94879.0,0.00189407]
[1745869741589,0.02714895,94880.0,94879.0,0.00189407]
[1745869742413,0.02714895,94880.0,94879.0,0.21268887]
[1745869743095,0.02714895,94880.0,94879.0,0.21250268]
[1745869760818,0.23794153,94880.0,94879.0,0.00170788]
[1745869761205,0.28702924,94880.0,94879.0,0.00170788]
[1745869761411,0.23794153,94880.0,94879.0,0.00170788]
[1745869762118,0.23794153,94880.0,94879.0,0.00070788]
[1745869763409,0.23794153,94880.0,94879.0,0.00270788]
[1745869763932,0.23794153,94880.0,94879.0,0.00070788]
[1745869764136,0.23794153,94880.0,94879.0,0.00270788]
[1745869769086,0.02714895,94880.0,94879.0,0.00270788]
[1745869769717,0.23794153,94880.0,94879.0,0.00270788]
[1745869772073,0.02714895,94880.0,94879.0,0.00270788]
[1745869772868,0.02714895,94880.0,94879.0,0.21350268]
[1745869775110,0.11349612,94919.0,94893.0,0.2107637]
[1745869775111,0.06470308,94914.0,94893.0,0.2107637]
[1745869775325,0.01053607,94912.0,94893.0,0.2107637]
[1745869775542,0.11230308,94914.0,94893.0,0.2107637]
[1745869775543,0.06470308,94914.0,94893.0,0.79616912]
[1745869775752,0.06470308,94914.0,94893.0,1.13616912]
[1745869776394,0.07523893,94914.0,94893.0,1.13716912]
[1745869776591,0.22125769,94912.0,94893.0,1.23916912]
[1745869776803,0.07523893,94914.0,94893.0,1.23816912]
[1745869777213,0.06470308,94914.0,94893.0,1.24016912]
[1745869778574,0.01096,94918.0,94914.0,0.21071596]
[1745869779005,0.0004246,94918.0,94914.0,0.21071596]
[1745869779122,0.0004246,94918.0,94916.0,0.210712]
[1745869779827,0.0054246,94918.0,94916.0,0.210712]
[1745869780346,0.0004246,94918.0,94916.0,0.210712]
[1745869780551,0.0054246,94918.0,94916.0,0.210712]
[1745869781377,0.0054246,94918.0,94917.0,0.10196]
[1745869782311,0.0004246,94918.0,94917.0,0.10196]
[1745869782724,0.0004246,94918.0,94917.0,0.31267041]
[1745869783478,0.0004246,94918.0,94917.0,0.31367041]
[1745869784269,0.0004246,94918.0,94917.0,0.72392198]
[1745869787623,0.0004246,94918.0,94917.0,0.73195493]
[1745869794255,0.0004246,94918.0,94917.0,0.62999493]
[1745869800371,0.0004246,94918.0,94917.0,1.18432592]
[1745869800541,0.0004246,94932.0,94931.0,0.65812018]
[1745869800724,0.0004246,94932.0,94931.0,1.17526189]
[1745869800928,0.00056094,94932.0,94931.0,1.17526189]
[1745869801957,0.00056094,94932.0,94931.0,1.27722189]
[1745869802568,0.00056094,94932.0,94931.0,1.07743175]
[1745869802786,0.00056094,94932.0,94931.0,0.74243175]
[1745869805005,0.00056094,94932.0,94931.0,0.64047175]
[1745869805211,0.00056094,94932.0,94931.0,0.41525157]
[1745869806003,0.01109479,94932.0,94924.0,0.01053474]
[1745869806202,0.00056094,94932.0,94930.0,0.21067972]
[1745869806431,0.00056094,94932.0,94931.0,0.002]
[1745869807682,0.00794978,94932.0,94931.0,0.002]
[1745869808445,0.00794978,94932.0,94930.0,0.21068053]
[1745869808653,0.00794978,94932.0,94931.0,0.002]
[1745869808808,0.00056094,94932.0,94931.0,0.002]
[1745869809217,0.00795044,94932.0,94931.0,0.002]
[1745869810107,0.00056094,94932.0,94930.0,0.21068053]
[1745869811037,0.00056094,94932.0,94931.0,0.002]
[1745869811545,0.00056094,94932.0,94931.0,0.21267933]
[1745869812063,0.00056094,94932.0,94931.0,0.21067933]
[1745869813327,0.00056094,94932.0,94931.0,0.21267933]
[1745869819046,0.00056094,94932.0,94931.0,0.32662679]
[1745869819220,0.00056094,94932.0,94931.0,0.32452018]
[1745869819591,0.00056094,94932.0,94931.0,0.43141032]
[1745869820212,0.00056094,94932.0,94931.0,1.18166189]
[1745869822049,0.00056094,94932.0,94931.0,1.17966189]
[1745869822267,0.00056094,94932.0,94931.0,1.18366189]
[1745869824038,0.00056094,94932.0,94931.0,0.74636189]
[1745869827013,0.00056094,94932.0,94931.0,1.08636189]
[1745869829073,0.00056094,94932.0,94931.0,1.13196189]
[1745869832312,0.00056094,94932.0,94931.0,0.52114171]
[1745869832534,0.00056094,94932.0,94931.0,0.41425157]
[1745869832736,0.21123805,94932.0,94931.0,0.41425157]
[1745869832948,0.26103805,94932.0,94931.0,0.004]
[1745869833159,0.40020697,94932.0,94931.0,0.004]
[1745869833354,0.40759606,94932.0,94931.0,0.004]
[1745869833958,0.01053418,94929.0,94926.0,0.21069005]
[1745869834251,0.00933427,94928.0,94926.0,0.21069005]
[1745869834661,0.00933427,94928.0,94923.0,0.22123174]
[1745869834798,0.00929237,94927.0,94923.0,0.22123174]
[1745869834998,0.01982678,94927.0,94923.0,0.22123174]
[1745869835382,0.00929237,94927.0,94925.0,0.21069219]
[1745869835961,0.10619479,94932.0,94929.0,0.21068155]
[1745869836365,0.00927667,94931.0,94929.0,0.21068155]
[1745869836887,0.0073873,94930.0,94929.0,0.21068155]
[1745869837321,0.01666659,94930.0,94929.0,0.21068155]
[1745869837514,0.01666659,94930.0,94925.0,0.21069219]
[1745869837714,0.21068377,94929.0,94926.0,0.21069012]
[1745869837919,0.00928714,94929.0,94928.0,0.21068599]
[1745869838388,0.00928714,94929.0,94927.0,0.21068821]
[1745869838599,0.00928714,94929.0,94928.0,0.21068599]
[1745869838795,0.00928714,94929.0,94926.0,0.21068999]
[1745869839095,0.01982132,94929.0,94926.0,0.21068997]
[1745869839304,0.31687195,94932.0,94928.0,0.21268599]
[1745869839757,0.00918958,94931.0,94930.0,0.21068145]
[1745869840249,0.01657509,94931.0,94928.0,0.002]
[1745869840491,0.01657509,94931.0,94928.0,0.01253429]
[1745869840712,0.01657509,94931.0,94929.0,0.21068157]
[1745869841528,0.00738551,94930.0,94929.0,0.21068157]
[1745869841924,0.01657509,94930.0,94929.0,0.21068157]
[1745869842096,0.21068599,94928.0,94919.0,0.63149138]
[1745869842306,0.00920529,94927.0,94925.0,0.21069237]
[1745869842681,0.23042798,94927.0,94923.0,0.2212277]
[1745869843047,0.00920529,94927.0,94925.0,0.21069227]
[1745869843354,0.00920529,94927.0,94925.0,0.21069265]
[1745869843557,0.00920529,94927.0,94926.0,0.21069043]
[1745869843734,0.05458551,94929.0,94928.0,0.21068599]
[1745869843936,0.0563922,94929.0,94928.0,0.21068599]
[1745869845591,0.0563922,94929.0,94928.0,0.002]
[1745869845802,0.0563922,94929.0,94928.0,0.21268599]
[1745869847051,0.0563922,94929.0,94928.0,0.002]
[1745869847277,0.0563922,94929.0,94928.0,0.21268599]
[1745869847911,0.26707597,94929.0,94928.0,0.002]
[1745869848757,0.27446148,94929.0,94928.0,0.002]
[1745869848964,0.22123564,94922.0,94919.0,0.32374318]
[1745869849181,0.01053485,94923.0,94918.0,0.22124244]
[1745869849391,0.01053463,94925.0,94922.0,0.21069869]
[1745869849601,0.030216,94928.0,94923.0,0.21069603]
[1745869849602,0.01053441,94927.0,94923.0,0.21069603]
[1745869849875,0.0091526,94924.0,94921.0,0.01053507]
[1745869850102,0.01053452,94926.0,94921.0,0.01053507]
[1745869850294,0.00915521,94923.0,94922.0,0.22123427]